bitfinex-derivatives/quotes_SOLF0:USTF0_20230904
["timestamp","ask_amount","ask_price","bid_price","bid_amount"]
[1693842482917,541.79701184,19.434,19.407,813.52]
[1693842482918,0.45454546,19.428,19.421,203.38]
[1693842483224,745.17701184,19.434,19.421,203.38]
[1693842483225,15.46,19.431,19.421,203.38]
[1693842483414,15.46,19.429,19.421,203.38]
[1693842483721,3.66004115,19.428,19.421,203.38]
[1693842483916,15.46,19.431,19.421,203.38]
[1693842484119,15.46,19.429,19.421,203.38]
[1693842484318,3.65912635,19.428,19.421,203.38]
[1693842484523,15.46,19.431,19.422,15.29]
[1693842484718,15.46,19.436,19.424,203.38]
[1693842484918,3.20472172,19.435,19.424,203.38]
[1693842489523,3.20472172,19.435,19.425,20.8014]
[1693842490820,3.20472172,19.435,19.425,36.0914]
[1693842491124,3.20472172,19.435,19.426,203.38]
[1693842492022,3.20472172,19.435,19.425,20.8014]
[1693842493218,3.20472172,19.435,19.425,224.1814]
[1693842497924,3.20472172,19.435,19.426,111.77]
[1693842498124,15.46,19.433,19.426,111.77]
[1693842498326,3.20472172,19.432,19.426,111.77]
[1693842498527,111.77,19.435,19.425,20.8014]
[1693842498827,15.46,19.433,19.425,20.8014]
[1693842499026,15.46,19.431,19.425,20.8014]
[1693842499227,111.77,19.435,19.425,20.8014]
[1693842499426,15.46,19.433,19.425,20.8014]
[1693842499630,15.46,19.431,19.425,20.8014]
[1693842499825,15.46,19.429,19.425,20.8014]
[1693842500025,111.77,19.435,19.425,20.8014]
[1693842500231,15.46,19.433,19.424,111.77]
[1693842500533,15.46,19.431,19.424,111.77]
[1693842500725,15.46,19.429,19.424,111.77]
[1693842500926,20.3084,19.438,19.421,111.77]
[1693842500927,111.77,19.433,19.421,111.77]
[1693842501122,15.46,19.431,19.421,111.77]
[1693842501320,111.77,19.433,19.421,111.77]
[1693842501525,15.46,19.431,19.421,111.77]
[1693842501725,111.77,19.433,19.421,111.77]
[1693842501925,15.46,19.431,19.421,111.77]
[1693842502228,111.77,19.433,19.421,111.77]
[1693842502433,15.46,19.431,19.421,111.77]
[1693842502628,111.77,19.433,19.421,111.77]
[1693842502822,15.46,19.431,19.421,111.77]
[1693842503020,111.77,19.433,19.422,15.28]
[1693842503329,3.2057195,19.432,19.425,111.77]
[1693842503532,111.77,19.437,19.425,111.77]
[1693842503827,3.20518934,19.436,19.425,111.77]
[1693842504331,3.20518934,19.436,19.426,22.0361]
[1693842508737,3.20552541,19.435,19.432,15.45]
[1693842508927,3.20447261,19.442,19.435,15.45]
[1693842509132,111.77,19.445,19.435,15.45]
[1693842509328,2.73370248,19.444,19.435,15.45]
[1693842512542,2.48e-06,19.444,19.438,111.77]
[1693842512837,2.48e-06,19.448,19.438,111.77]
[1693842513236,111.77,19.447,19.435,111.77]
[1693842513436,2.48e-06,19.446,19.435,111.77]
[1693842513736,0.16,19.445,19.435,111.77]
[1693842514134,0.16,19.443,19.432,111.77]
[1693842518949,2.65901373,19.443,19.432,111.77]
[1693842519843,0.16,19.439,19.428,111.77]
[1693842520046,3.11355919,19.439,19.428,111.77]
[1693842520238,2.49901373,19.438,19.428,111.77]
[1693842520442,111.77,19.436,19.426,22.0361]
[1693842521447,111.77,19.436,19.425,111.77]
[1693842522151,0.16,19.439,19.429,15.45]
[1693842522353,3.11525849,19.439,19.429,15.45]
[1693842522546,2.50071303,19.438,19.429,36.6123]
[1693842523043,670.4011777,19.489,19.429,36.6123]
[1693842523044,152.92697374,19.445,19.434,15.45]
[1693842523246,0.16,19.443,19.434,15.45]
[1693842523650,152.92697374,19.445,19.434,15.45]
[1693842524149,0.16,19.443,19.434,15.45]
[1693842525149,0.16,19.443,19.433,111.77]
[1693842525150,41.15697374,19.445,19.437,15.45]
[1693842525350,21.6958,19.447,19.437,15.45]
[1693842525653,0.16,19.445,19.437,15.45]
[1693842526043,2.4979653,19.445,19.437,15.45]
[1693842526246,111.77,19.448,19.437,15.45]
[1693842526551,2.49798889,19.447,19.437,15.45]
[1693842528349,2.49798889,19.447,19.439,111.77]
[1693842528545,0.61454546,19.449,19.44,15.45]
[1693842528754,2.49802334,19.448,19.44,15.45]
[1693842529346,2.9525688,19.449,19.44,15.45]
[1693842529655,2.49802334,19.448,19.44,15.45]
[1693842534260,875.0,19.463,19.443,15.43]
[1693842534261,0.15,19.453,19.443,15.43]
[1693842534556,2.45418102,19.453,19.443,15.43]
[1693842535956,42.61467484,19.453,19.443,15.43]
[1693842536254,2.30418102,19.452,19.443,15.43]
[1693842536457,0.15,19.453,19.443,15.43]
[1693842536654,2.45373542,19.453,19.443,15.43]
[1693842537358,2.30373542,19.453,19.447,15.43]
[1693842537661,2.30373542,19.452,19.447,15.43]
[1693842537856,0.15,19.455,19.447,15.43]
[1693842538051,2.30378339,19.455,19.447,15.43]
[1693842538253,2.30378339,19.454,19.447,15.43]
[1693842538457,2.30378339,19.453,19.447,15.43]
[1693842538755,2.30378339,19.452,19.447,15.43]
[1693842538961,0.15,19.456,19.447,15.43]
[1693842539158,43.29703386,19.456,19.447,15.43]
[1693842539356,0.15,19.453,19.443,15.43]
[1693842539559,2.45384621,19.453,19.443,15.43]
[1693842540351,2.30384621,19.453,19.447,15.43]
[1693842540552,0.15,19.457,19.447,15.43]
[1693842540852,2.45375379,19.457,19.447,15.43]
[1693842543157,0.15,19.453,19.443,15.43]
[1693842543460,2.45375379,19.453,19.443,15.43]
[1693842543958,2.45375379,19.453,19.442,111.77]
[1693842544158,2.45375379,19.453,19.437,133.6094]
[1693842544159,111.77,19.449,19.437,133.6094]
[1693842544462,0.45454546,19.452,19.437,21.8394]
[1693842544463,0.15,19.445,19.437,21.8394]
[1693842549763,0.15,19.445,19.434,111.77]
[1693842554169,2.45490922,19.445,19.434,111.77]
[1693842554370,0.15,19.439,19.429,20.348]
[1693842554570,0.60454546,19.439,19.429,20.348]
[1693842558781,2.30514196,19.438,19.429,20.348]
[1693842559279,2.30514196,19.438,19.428,111.77]
[1693842559481,0.60454546,19.439,19.428,111.77]
[1693842560780,2.30464763,19.438,19.428,111.77]
[1693842561174,2.30464763,19.438,19.428,111.83]
[1693842563082,114.07464763,19.438,19.428,0.06]
[1693842563383,111.77,19.438,19.428,0.06]
[1693842564783,2.30461168,19.437,19.428,0.06]
[1693842564981,111.77,19.438,19.428,0.06]
[1693842565182,111.77,19.435,19.428,0.06]
[1693842568079,0.16,19.431,19.421,15.44]
[1693842573783,111.77,19.432,19.421,15.44]
[1693842573983,111.77,19.435,19.425,15.44]
[1693842574986,111.93,19.439,19.428,15.44]
[1693842575383,2.30308083,19.438,19.428,15.44]
[1693842575584,111.93,19.439,19.428,15.44]
[1693842576176,2.30244367,19.438,19.428,15.44]
[1693842576384,111.93,19.439,19.428,15.44]
[1693842576584,2.30246501,19.438,19.428,15.44]
[1693842576987,111.77,19.439,19.428,15.44]
[1693842577487,111.93,19.439,19.428,15.44]
[1693842578687,2.30266649,19.438,19.428,15.44]
[1693842578987,111.93,19.439,19.428,15.44]
[1693842579483,2.30267522,19.438,19.428,15.44]
[1693842582390,111.77,19.437,19.426,31.05686071]
[1693842583891,111.93,19.439,19.428,15.44]
[1693842584292,2.30270547,19.438,19.428,15.44]
[1693842584792,111.93,19.439,19.428,15.44]
[1693842585793,2.30271539,19.438,19.428,15.44]
[1693842586892,111.93,19.439,19.428,15.44]
[1693842588895,111.93,19.439,19.427,111.77]
[1693842589197,111.77,19.437,19.425,111.77]
[1693842592702,0.16,19.433,19.422,111.77]
[1693842593095,0.16,19.426,19.416,111.77]
[1693842601411,111.77,19.421,19.408,111.77]
[1693842601604,0.45454546,19.42,19.408,111.77]
[1693842601804,22.23864546,19.42,19.408,111.77]
[1693842602005,0.45454546,19.42,19.408,111.77]
[1693842602612,0.45454546,19.42,19.402,20.3056]
[1693842602613,0.16,19.414,19.402,20.3056]
[1693842602811,0.16,19.414,19.403,388.87810888]
[1693842603109,0.16,19.414,19.404,277.10810888]
[1693842604509,111.77,19.408,19.395,111.77]
[1693842604713,111.77,19.408,19.395,133.6474]
[1693842605109,111.93,19.408,19.395,133.6474]
[1693842607310,0.16,19.401,19.384,447.08]
[1693842607618,0.16,19.401,19.391,15.44]
[1693842607814,111.77,19.405,19.392,111.77]
[1693842608119,111.93,19.408,19.395,111.77]
[1693842608417,111.77,19.407,19.395,15.44]
[1693842609721,111.77,19.41,19.397,111.77]
[1693842609915,111.77,19.412,19.398,277.16676765]
[1693842610121,111.77,19.412,19.4,127.21]
[1693842610417,111.77,19.412,19.4,111.77]
[1693842612823,111.77,19.415,19.403,111.77]
[1693842613025,205.33,19.416,19.402,205.33]
[1693842615222,205.33,19.414,19.4,205.33]
[1693842615421,0.16,19.41,19.397,205.33]
[1693842615618,0.16,19.41,19.398,277.15091134]
[1693842615815,21.1621,19.415,19.393,205.33]
[1693842615816,205.33,19.408,19.393,205.33]
[1693842616122,205.33,19.405,19.393,205.33]
[1693842618319,205.33,19.402,19.388,236.07976027]
[1693842618519,205.33,19.402,19.391,15.44]
[1693842618821,205.33,19.402,19.392,277.24595271]
[1693842619023,205.33,19.402,19.388,251.51976027]
[1693842619225,205.33,19.402,19.389,277.24449261]
[1693842619621,0.16,19.401,19.389,277.24449261]
[1693842619817,205.33,19.395,19.389,277.24449261]
[1693842620023,205.33,19.398,19.388,30.74976027]
[1693842620421,0.16,19.401,19.382,15.44]
[1693842620422,205.33,19.394,19.382,15.44]
[1693842620624,205.33,19.394,19.384,15.44]
[1693842620824,0.16,19.393,19.385,277.32742661]
[1693842621022,0.16,19.393,19.382,15.44]
[1693842621321,0.16,19.393,19.384,15.44]
[1693842621625,0.16,19.393,19.385,277.32687003]
[1693842621825,0.16,19.393,19.382,15.44]
[1693842622126,205.33,19.394,19.384,15.44]
[1693842622425,205.33,19.394,19.385,277.325084]
[1693842622620,0.16,19.393,19.382,15.44]
[1693842622825,0.19,19.393,19.384,15.44]
[1693842623024,0.19,19.393,19.385,277.32379998]
[1693842623226,205.33,19.394,19.382,15.47]
[1693842623421,0.19,19.393,19.384,15.47]
[1693842623623,0.19,19.393,19.385,277.32220508]
[1693842623824,0.19,19.393,19.382,15.47]
[1693842624023,0.19,19.393,19.384,15.47]
[1693842624224,0.19,19.393,19.385,277.32160715]
[1693842624427,205.33,19.394,19.382,15.47]
[1693842624621,205.33,19.394,19.384,15.47]
[1693842624824,205.33,19.394,19.385,277.32006289]
[1693842625021,205.33,19.394,19.382,15.47]
[1693842625225,205.33,19.394,19.381,205.33]
[1693842625226,205.33,19.394,19.384,15.47]
[1693842625428,205.33,19.394,19.385,277.31916718]
[1693842625728,205.33,19.394,19.382,15.47]
[1693842626029,205.33,19.394,19.384,15.47]
[1693842626228,205.33,19.394,19.385,277.3181649]
[1693842626529,205.33,19.394,19.382,15.47]
[1693842626730,205.33,19.394,19.384,15.47]
[1693842626926,205.33,19.394,19.385,277.31603388]
[1693842627128,205.33,19.394,19.382,15.47]
[1693842627425,205.33,19.394,19.384,15.47]
[1693842627631,205.33,19.394,19.382,15.47]
[1693842627831,205.33,19.394,19.384,15.47]
[1693842628032,205.33,19.394,19.382,15.47]
[1693842628235,205.33,19.394,19.384,15.47]
[1693842628532,205.33,19.394,19.382,15.47]
[1693842628732,205.33,19.394,19.384,15.47]
[1693842628932,205.33,19.394,19.382,15.47]
[1693842629231,205.33,19.394,19.384,15.47]
[1693842629432,205.33,19.394,19.382,15.47]
[1693842629732,205.33,19.394,19.384,15.47]
[1693842629931,205.33,19.394,19.382,15.47]
[1693842630132,205.33,19.394,19.384,15.47]
[1693842630333,205.33,19.394,19.382,15.47]
[1693842630533,205.33,19.394,19.384,15.47]
[1693842630734,205.33,19.394,19.382,15.47]
[1693842631033,205.33,19.394,19.384,15.47]
[1693842631232,205.33,19.394,19.382,15.47]
[1693842631532,205.33,19.394,19.384,15.47]
[1693842631733,205.33,19.394,19.382,15.47]
[1693842632033,205.33,19.394,19.384,15.47]
[1693842632233,205.33,19.394,19.382,15.47]
[1693842632435,205.33,19.394,19.384,15.47]
[1693842632735,205.33,19.394,19.382,15.47]
[1693842632931,205.33,19.394,19.384,15.47]
[1693842633234,205.33,19.394,19.382,15.47]
[1693842633431,0.19,19.393,19.384,15.47]
[1693842633631,0.19,19.393,19.382,15.47]
[1693842633832,0.19,19.393,19.384,15.47]
[1693842634034,0.19,19.393,19.382,15.47]
[1693842634233,40.24755027,19.398,19.351,129.3612165]
[1693842634234,205.33,19.392,19.384,15.47]
[1693842634431,205.33,19.392,19.379,15.47]
[1693842634735,205.33,19.392,19.38,286.79170762]
[1693842634936,205.33,19.392,19.382,15.47]
[1693842635138,205.33,19.392,19.384,15.47]
[1693842635433,205.33,19.392,19.379,15.47]
[1693842635634,205.33,19.392,19.38,286.79257919]
[1693842635836,205.33,19.392,19.382,15.47]
[1693842636029,205.33,19.392,19.379,15.47]
[1693842636229,205.33,19.392,19.38,286.7921761]
[1693842636436,205.33,19.392,19.378,205.33]
[1693842636437,205.33,19.392,19.382,15.47]
[1693842636634,205.33,19.392,19.379,15.47]
[1693842636827,205.33,19.392,19.38,286.79181177]
[1693842637030,205.33,19.392,19.382,15.47]
[1693842637227,205.33,19.392,19.379,15.47]
[1693842637536,205.33,19.392,19.38,286.79146022]
[1693842637737,205.33,19.392,19.382,15.47]
[1693842638032,0.19,19.39,19.379,110.9]
[1693842638237,0.19,19.387,19.375,110.9]
[1693842640941,0.19,19.387,19.373,40.25167611]
[1693842640942,110.9,19.384,19.373,40.25167611]
[1693842641142,110.9,19.384,19.372,110.9]
[1693842643041,110.9,19.381,19.37,37.2669]
[1693842643242,110.9,19.381,19.371,9.48241119]
[1693842651453,110.9,19.383,19.371,120.38241119]
[1693842651654,110.9,19.383,19.372,9.48241119]
[1693842660358,110.9,19.383,19.372,50.70079011]
[1693842660657,110.9,19.387,19.375,110.9]
[1693842660849,111.1,19.387,19.375,110.9]
[1693842661052,110.9,19.385,19.373,110.9]
[1693842663158,110.9,19.378,19.366,110.9]
[1693842663357,110.9,19.378,19.367,9.48432379]
[1693842663552,110.9,19.376,19.365,31.83103997]
[1693842663956,20.1267,19.375,19.365,31.83103997]
[1693842665060,110.9,19.373,19.365,31.83103997]
[1693842668359,20.1267,19.375,19.365,31.83103997]
[1693842669866,20.1267,19.375,19.366,9.48504726]
[1693842671870,110.9,19.376,19.365,31.83103997]
[1693842672471,110.9,19.379,19.367,110.9]
[1693842676372,110.9,19.376,19.365,31.83103997]
[1693842676574,0.45454546,19.375,19.365,31.83103997]
[1693842676773,21.49174546,19.375,19.365,31.83103997]
[1693842676972,0.45454546,19.375,19.365,31.83103997]
[1693842678975,0.2,19.373,19.365,31.83103997]
[1693842679471,110.9,19.374,19.365,31.83103997]
[1693842679878,22.1922,19.373,19.365,31.83103997]
[1693842680775,0.45454546,19.375,19.365,31.83103997]
[1693842682371,0.45454546,19.375,19.367,110.9]
[1693842682576,110.9,19.379,19.367,110.9]
[1693842683580,110.9,19.378,19.366,110.9]
[1693842683777,110.9,19.375,19.365,31.83103997]
[1693842684677,111.35454546,19.375,19.365,31.83103997]
[1693842684877,110.9,19.375,19.365,31.83103997]
[1693842685881,110.9,19.372,19.365,31.83103997]
[1693842693487,110.9,19.372,19.359,151.76319049]
[1693842693688,0.2,19.37,19.359,151.76319049]
[1693842694083,21.4976,19.371,19.359,151.76319049]
[1693842694380,110.9,19.372,19.359,151.76319049]
[1693842698691,110.9,19.372,19.359,110.9]
[1693842700989,110.9,19.372,19.361,110.9]
[1693842701292,110.9,19.372,19.361,143.29905315]
[1693842704599,110.9,19.384,19.372,110.9]
[1693842704895,0.2,19.387,19.367,443.6]
[1693842704896,0.45454546,19.386,19.375,110.9]
[1693842705189,110.9,19.387,19.375,126.38]
[1693842708384,110.9,19.389,19.377,110.9]
[1693842715394,110.9,19.392,19.38,110.9]
[1693842715695,110.9,19.392,19.38,139.9568882]
[1693842718698,21.0314,19.398,19.384,15.48]
[1693842718699,110.9,19.395,19.384,15.48]
[1693842719102,110.9,19.395,19.382,110.9]
[1693842719704,110.9,19.397,19.385,110.9]
[1693842723606,110.9,19.397,19.385,110.96]
[1693842724809,21.0314,19.398,19.389,110.9]
[1693842728409,110.9,19.401,19.389,110.9]
[1693842728606,111.35454546,19.405,19.392,110.9]
[1693842728814,21.1675,19.406,19.395,110.9]
[1693842729513,0.19,19.405,19.395,110.9]
[1693842729709,111.09,19.405,19.393,500.0]
[1693842732420,0.19,19.405,19.396,110.9]
[1693842732813,0.19,19.405,19.393,610.9]
[1693842733117,110.9,19.403,19.391,110.9]
[1693842733420,111.09,19.403,19.391,151.11844409]
[1693842733620,110.9,19.403,19.391,151.11844409]
[1693842733820,111.09,19.403,19.391,151.11844409]
[1693842734121,110.9,19.403,19.391,151.11844409]
[1693842734320,111.09,19.403,19.391,151.11844409]
[1693842734619,110.9,19.403,19.391,151.11844409]
[1693842734819,111.09,19.403,19.391,151.11844409]
[1693842735123,110.9,19.403,19.391,151.11844409]
[1693842735421,111.09,19.403,19.391,151.11844409]
[1693842735617,110.9,19.403,19.391,151.11844409]
[1693842735920,111.09,19.403,19.391,151.11844409]
[1693842736119,110.9,19.401,19.389,110.9]
[1693842737115,110.9,19.398,19.386,110.9]
[1693842742127,110.9,19.401,19.389,110.9]
[1693842742327,0.19,19.403,19.392,110.9]
[1693842743627,0.45454546,19.405,19.386,21.0695]
[1693842743628,0.18,19.401,19.391,15.46]
[1693842748528,0.45454546,19.405,19.385,0.06]
[1693842748529,110.9,19.399,19.388,15.46]
[1693842748727,0.18,19.395,19.385,0.06]
[1693842748921,0.18,19.393,19.385,0.06]
[1693842749126,0.45454546,19.393,19.385,0.06]
[1693842749328,0.18,19.393,19.385,0.06]
[1693842749926,110.9,19.396,19.385,0.06]
[1693842750229,0.18,19.399,19.385,0.06]
[1693842751429,0.18,19.399,19.384,15.46]
[1693842751625,0.18,19.399,19.388,110.9]
[1693842753033,0.18,19.401,19.389,110.9]
[1693842759440,0.18,19.395,19.384,37.0269]
[1693842759640,0.18,19.393,19.384,37.0269]
[1693842759936,0.45454546,19.393,19.384,37.0269]
[1693842760139,0.18,19.393,19.384,37.0269]
[1693842760438,0.45454546,19.393,19.384,37.0269]
[1693842760642,0.18,19.393,19.384,37.0269]
[1693842760842,0.45454546,19.393,19.384,37.0269]
[1693842761038,0.18,19.393,19.384,37.0269]
[1693842761341,0.63454546,19.395,19.384,37.0269]
[1693842761540,0.18,19.393,19.384,37.0269]
[1693842761741,22.24044546,19.395,19.384,15.46]
[1693842762040,0.18,19.393,19.384,15.46]
[1693842762236,0.18,19.393,19.383,151.21340205]
[1693842762237,0.18,19.393,19.38,139.9568882]
[1693842762434,110.9,19.392,19.38,139.9568882]
[1693842762837,131.5789,19.392,19.38,139.9568882]
[1693842763038,131.5789,19.392,19.38,29.0568882]
[1693842763039,110.9,19.39,19.38,29.0568882]
[1693842764945,110.9,19.39,19.376,21.8005]
[1693842764946,110.9,19.387,19.376,21.8005]
[1693842765241,0.18,19.382,19.37,110.9]
[1693842772347,110.9,19.385,19.375,15.46]
[1693842772546,0.45454546,19.384,19.375,15.46]
[1693842777339,0.45454546,19.384,19.374,110.9]
[1693842777741,110.9,19.385,19.374,110.9]
[1693842777943,0.2,19.382,19.371,110.9]
[1693842781448,110.9,19.381,19.37,15.48]
[1693842781950,110.9,19.378,19.366,110.9]
[1693842786048,110.9,19.381,19.37,15.48]
[1693842788255,0.2,19.382,19.372,110.9]
[1693842788550,110.9,19.387,19.383,15.48]
[1693842788750,110.9,19.39,19.379,15.48]
[1693842797355,110.9,19.393,19.382,110.9]
[1693842803263,0.19,19.395,19.384,110.9]
[1693842803467,0.19,19.393,19.384,110.9]
[1693842803660,0.64454546,19.395,19.384,110.9]
[1693842803861,0.19,19.393,19.384,110.9]
[1693842804058,0.64454546,19.395,19.384,110.9]
[1693842804260,0.19,19.393,19.384,110.9]
[1693842804465,0.64454546,19.395,19.384,110.9]
[1693842804670,0.19,19.393,19.384,110.9]
[1693842804871,0.64454546,19.395,19.384,110.9]
[1693842805073,110.9,19.392,19.38,110.9]
[1693842805473,110.9,19.395,19.383,110.9]
[1693842805666,0.19,19.393,19.383,110.9]
[1693842809468,0.45454546,19.394,19.383,110.9]
[1693842810670,0.19,19.401,19.389,110.9]
[1693842810873,0.19,19.401,19.394,15.47]
[1693842811073,0.19,19.401,19.391,15.47]
[1693842811273,111.09,19.405,19.393,110.9]
[1693842811472,0.19,19.403,19.393,110.9]
[1693842812473,0.19,19.408,19.396,110.9]
[1693842815773,0.19,19.405,19.394,110.9]
[1693842815973,0.19,19.405,19.395,277.25797889]
[1693842817673,0.19,19.405,19.399,15.47]
[1693842818074,0.19,19.405,19.394,151.75316846]
[1693842818275,0.19,19.408,19.398,110.9]
[1693842823183,0.19,19.408,19.399,110.9]
[1693842824581,110.9,19.412,19.399,110.9]
[1693842825080,20.8434,19.414,19.402,142.62087603]
[1693842825081,131.7434,19.414,19.402,142.62087603]
[1693842825281,131.5534,19.414,19.402,142.62087603]
[1693842825779,131.7434,19.414,19.402,142.62087603]
[1693842825979,131.5534,19.414,19.402,142.62087603]
[1693842826379,131.7434,19.414,19.402,142.62087603]
[1693842826581,131.5534,19.414,19.402,142.62087603]
[1693842826979,110.9,19.417,19.406,15.47]
[1693842827178,110.9,19.42,19.408,110.9]
[1693842828486,0.19,19.421,19.41,110.9]
[1693842833188,0.17,19.421,19.41,110.9]
[1693842833889,110.9,19.416,19.403,110.9]
[1693842834483,0.17,19.417,19.406,110.9]
[1693842839493,0.17,19.417,19.41,15.45]
[1693842839698,0.17,19.421,19.412,15.45]
[1693842841992,0.17,19.421,19.411,110.9]
[1693842843088,111.07,19.421,19.409,110.9]
[1693842845002,111.07,19.421,19.411,110.9]
[1693842845003,0.17,19.421,19.411,110.9]
[1693842845303,110.9,19.42,19.408,110.9]
[1693842853010,110.9,19.417,19.405,110.9]
[1693842853508,0.17,19.414,19.402,142.62087603]
[1693842853812,0.17,19.414,19.393,20.0079]
[1693842853813,110.9,19.412,19.399,110.9]
[1693842854307,0.17,19.41,19.399,110.9]
[1693842860313,0.17,19.41,19.402,110.9]
[1693842863112,0.17,19.41,19.403,110.9]
[1693842869032,110.9,19.414,19.403,110.9]
[1693842872026,110.9,19.414,19.399,110.9]
[1693842873226,110.9,19.412,19.399,110.9]
[1693842873627,0.18,19.41,19.399,110.9]
[1693842874727,0.18,19.408,19.397,110.9]
[1693842876221,0.18,19.41,19.399,110.9]
[1693842883237,42.21606387,19.41,19.399,110.9]
[1693842884330,0.18,19.408,19.397,110.9]
[1693842884531,0.18,19.408,19.398,277.23583654]
[1693842887522,0.18,19.408,19.385,0.22727272]
[1693842887523,111.35454546,19.407,19.394,131.7484]
[1693842887724,0.18,19.403,19.395,277.24530085]
[1693842888030,0.63454546,19.403,19.395,277.24530085]
[1693842888833,0.45454546,19.403,19.395,277.24530085]
[1693842889229,0.18,19.405,19.395,277.24530085]
[1693842889429,0.45454546,19.404,19.395,277.24530085]
[1693842889731,0.45454546,19.403,19.397,110.9]
[1693842890035,0.18,19.408,19.397,110.9]
[1693842890230,0.45454546,19.407,19.397,110.9]
[1693842890431,0.18,19.405,19.397,110.9]
[1693842890638,0.45454546,19.404,19.397,110.9]
[1693842890825,0.45454546,19.403,19.397,110.9]
[1693842891132,0.18,19.408,19.397,110.9]
[1693842891325,0.45454546,19.407,19.397,110.9]
[1693842891528,0.18,19.408,19.397,110.9]
[1693842891728,0.45454546,19.407,19.397,110.9]
[1693842892026,0.18,19.405,19.397,110.9]
[1693842892226,0.45454546,19.404,19.397,110.9]
[1693842892429,0.45454546,19.403,19.397,110.9]
[1693842892632,0.18,19.408,19.397,110.9]
[1693842892829,0.45454546,19.407,19.397,110.9]
[1693842893030,0.45454546,19.406,19.397,110.9]
[1693842893233,0.18,19.408,19.397,110.9]
[1693842893433,0.45454546,19.407,19.397,110.9]
[1693842893634,0.45454546,19.406,19.397,110.9]
[1693842893834,152.1041237,19.41,19.397,110.9]
[1693842893835,0.45454546,19.405,19.397,110.9]
[1693842894040,0.18,19.408,19.397,110.9]
[1693842894228,0.45454546,19.407,19.397,110.9]
[1693842894433,0.45454546,19.406,19.397,110.9]
[1693842894629,0.45454546,19.405,19.397,110.9]
[1693842894833,0.18,19.408,19.397,110.9]
[1693842895136,0.45454546,19.407,19.397,110.9]
[1693842895335,0.18,19.408,19.397,110.9]
[1693842895535,0.45454546,19.407,19.397,110.9]
[1693842895734,0.18,19.408,19.397,110.9]
[1693842895933,0.45454546,19.407,19.397,110.9]
[1693842896245,0.45454546,19.406,19.397,110.9]
[1693842896436,0.45454546,19.405,19.397,110.9]
[1693842896737,0.18,19.408,19.397,110.9]
[1693842897038,0.45454546,19.407,19.397,110.9]
[1693842897236,0.45454546,19.406,19.397,110.9]
[1693842897429,0.18,19.408,19.397,110.9]
[1693842897632,0.45454546,19.407,19.397,110.9]